Cogmind - Beta 16 @@@ ROGUE MODE // 2025.10.30 @ 17:11:17 Player: Reflectatory Result: Destroyed by DZ-HUW(R) with Subdweller Machine Gun Performance ------------- Evolutions (0) 0 Regions Visited (2) 400 Robots Destroyed (9) 45 Value Destroyed (283) 283 Prototype IDs (0) 0 Alien Tech Used (0) 0 Bonus (0) 0 TOTAL SCORE: 728 Bonus ------- None Cogmind --------- Core Integrity 0/250 Matter 255/300 Energy 76/100 System Corruption 0% Temperature Cool (0) Movement Walking (120) Location -10/Subcaves Parts ------- > --- POWER (1) -------- (None) > --- PROPULSION (2) --- Aluminum Leg Aluminum Leg > --- UTILITY (2) ------ Sensor Array Sensor Array > --- WEAPON (2) ------- Assault Rifle Light Assault Rifle > --- INVENTORY (5) ---- Subdweller Power Source Subdweller Optics Subdweller Machine Gun Mining Laser Peak State ------------ > --- POWER ------------ Ion Engine > --- PROPULSION ------- Wheel Wheel > --- UTILITY ---------- Sensor Array Light Armor Plating > --- WEAPON ----------- Assault Rifle Assault Rifle > --- INVENTORY -------- Aluminum Leg Aluminum Leg Light Assault Rifle [Rating: 7] Favorites ----------- Power Ion Engine Engine Ion Engine Propulsion Wheel Leg Aluminum Leg Wheel Wheel Utility Sensor Array Device Sensor Array Protection Light Armor Plating Weapon Assault Rifle Ballistic Gun Assault Rifle Special Weapon Mining Laser Build | -11 -10 -10 ------- Run | Yrd Mat Sub Slots Evolved . | . . . Power . | . . . Propulsion . | . . . Utility . | . . . Weapon . | . . . Parts Attached 12 | 6 3 3 Power 1 | 1 . . Engine 1 | 1 . . Core . | . . . Reactor . | . . . Propulsion 4 | 3 . 1 Treads . | . . . Leg 2 | 1 . 1 Wheel 2 | 2 . . Hover . | . . . Flight . | . . . Utility 3 | . 3 . Device 2 | . 2 . Storage . | . . . Processor . | . . . Hackware . | . . . Protection 1 | . 1 . Artifact . | . . . Weapon 4 | 2 . 2 Energy Gun . | . . . Energy Cannon . | . . . Ballistic Gun 3 | 2 . 1 Ballistic Cannon . | . . . Launcher . | . . . Special Weapon 1 | . . 1 Impact Weapon . | . . . Slashing Weapon . | . . . Piercing Weapon . | . . . Special Melee Weapon . | . . . Unidentified Prototypes . | . . . Parts Lost 4 | . . 4 Power 1 | . . 1 Propulsion 1 | . . 1 Utility 1 | . . 1 Weapon 1 | . . 1 Highest Loss Streak 4 | . . 4 To Critical Strikes . | . . . Average Backups 4 | 1 4 4 Power . | . . . Propulsion 1 | 1 2 . Utility . | . . . Weapon 1 | . 1 1 Tool/Special . | . . . Unused Backups 4 | . 1 3 Power 1 | . . 1 Propulsion . | . . . Utility 1 | . . 1 Weapon 2 | . 1 1 Tool/Special . | . . . Average Slot Usage (%) 92 | . 98 88 Engine 7 | . 14 4 Leg 12 | . . 18 Wheel 15 | . 28 9 Device 19 | . 13 23 Protection 7 | . 13 4 Ballistic Gun 27 | . 28 27 Peak Build Rating 7 | 5 7 7 Average Rating 6 | 3 6 6 On Entrance 4 | . 5 7 Avg Prop Armor Cover (%) . | . . . Naked Turns . | . . . Heaviest Build 13 | 9 13 13 Greatest Support 20 | 20 20 20 Greatest Overweight (x) 1 | 1 . . Average Overweight (x) . | . . . Largest Inventory Capacity 5 | 5 5 5 Average Capacity 5 | 5 5 5 Most Carried 5 | 3 5 5 Average Carried 4 | 2 4 4 Final Capacity 5 | 5 5 5 Final Carried 5 | 3 5 4 Class Distribution -------------------- 100% | Mutant Dominant Class ---------------- Mutant | -10/Materials Mutant | -10/Subcaves Resources | -11 -10 -10 ----------- Run | Yrd Mat Sub Matter Collected 474 | 245 131 98 Remotely . | . . . Salvage Created 343 | . 245 98 Parts 18 | . 13 5 Haulers Intercepted . | . . . Recyclers Shooed . | . . . Parts Field Recycled . | . . . Retrieved Matter . | . . . Parts Self-Destructed 5 | . . 5 Prevented . | . . . Parts Restored . | . . . Kills | -11 -10 -10 ------- Run | Yrd Mat Sub Combat Hostiles Destroyed 9 | . 7 2 Guns 9 | . 7 2 Classes Destroyed 3 | . 2 1 Swarmer 2 | . 2 . Grunt 5 | . 5 . Subdweller 2 | . . 2 Best Kill Streak 3 | . 3 2 Combat Bots Only 3 | . 3 2 Max Kills in Single Turn 2 | . 2 1 Gunslinging 1 | . 1 . Exploded . | . . . Melee . | . . . Uniques/NPCs Destroyed . | . . . Combat | -11 -10 -10 -------- Run | Yrd Mat Sub Hostile Shots Fired 61 | . 31 30 Missed 15 | . 9 6 Hits 46 | . 22 24 Projectile 46 | . 22 24 Damage Taken 781 | . 221 560 Core 257 | . 47 210 Absorbed by Shields . | . . . Core Remaining (%) 100 | 100 . . Volleys Fired 37 | . 22 15 Largest 2 | . 2 2 Hottest 100 | . 40 100 Shots Fired 71 | . 44 27 Gun 69 | . 44 25 Cannon . | . . . Launcher . | . . . Special 2 | . . 2 Kinetic 69 | . 44 25 Thermal 2 | . . 2 Explosive . | . . . Electromagnetic . | . . . Robot Hit Streak 18 | . 15 18 Robot Miss Streak 4 | . 4 1 Penetration Max . | . . . Secondary Targets 3 | . 2 1 Max Gunslinging Chain 1 | . 1 1 Shots Hit Robots 53 | . 30 23 Core Hits 17 | . 12 5 Critical Kills . | . . . Critical Parts Destroyed . | . . . Critical Strikes . | . . . Melee Attacks . | . . . Impact . | . . . Slashing . | . . . Piercing . | . . . Sneak Attacks . | . . . Combat Hostiles . | . . . Follow-up Attacks . | . . . Damage Inflicted 496 | . 375 121 Guns 496 | . 375 121 Cannons . | . . . Explosions . | . . . Melee . | . . . Ramming . | . . . Kinetic 496 | . 375 121 Thermal . | . . . Explosive . | . . . Electromagnetic . | . . . Impact . | . . . Slashing . | . . . Piercing . | . . . Highest Corruption . | . . . Average Corruption . | . . . Corruption Purged . | . . . Corruption Blocked . | . . . Overload Shots . | . . . Overflow Damage . | . . . Projectiles . | . . . Explosions . | . . . Melee . | . . . Knockbacks . | . . . Impact . | . . . Kinetic . | . . . Secondary . | . . . Self-Inflicted Damage . | . . . Shots . | . . . Rammed . | . . . Targets Rammed . | . . . Kicked . | . . . Crushed . | . . . Highest Temperature 14 | . 14 . Average Temperature 4 | . 4 . Received Heat Transfer 117 | . 72 45 Siege Activations . | . . . Martial Activations . | . . . Shielding Activations . | . . . Robots Disrupted . | . . . Combat Hostiles . | . . . Robots Corrupted . | . . . Combat Hostiles . | . . . Parts Fried . | . . . Impact Corruptions . | . . . Robots Melted . | . . . Combat Hostiles . | . . . Parts Melted . | . . . Heat Transferred . | . . . Parts Sabotaged . | . . . Parts Stolen . | . . . Parts Stripped . | . . . Power Chain Reactions . | . . . Alert | -11 -10 -10 ------- Run | Yrd Mat Sub Maximum Alert Level . | . . . Low Security (%) 100 | 100 100 . Level 1 . | . . . Level 2 . | . . . Level 3 . | . . . Level 4 . | . . . Level 5 . | . . . High Security . | . . . Max Security . | . . . Peak Influence 161 | . 161 . Initial . | . . . Average 82 | . 92 . Influence Increases 234 | . 234 . Destroy 0b10 Robot/C 140 | . 140 . Destroy Leader 30 | . 30 . Successful Hack 33 | . 33 . Select Force Hacks 30 | . 30 . Destroy Structure 1 | . 1 . Influence Decreases 234 | . 135 99 Entered New Map 48 | . . 48 Time Decay 186 | . 135 51 Squads Dispatched 2 | . 2 . Investigation 1 | . 1 . Extermination . | . . . Reinforcement 1 | . 1 . Assault . | . . . Garrison . | . . . Intercept . | . . . Searches Triggered . | . . . Construction Impeded . | . . . Haulers Reinforced . | . . . Active Scanning Responses . | . . . Cargo Convoy Interrupts . | . . . Stealth | -11 -10 -10 --------- Run | Yrd Mat Sub Distress Signals . | . . . Communications Jammed . | . . . Distress Signals . | . . . Times Spotted 14 | . 10 4 Peak Tracking Total 3 | . 3 2 Tactical Retreats . | . . . Traps | -11 -10 -10 ------- Run | Yrd Mat Sub Traps Triggered . | . . . Indirectly . | . . . Trap Hack Attempts . | . . . Triggered . | . . . Disarmed . | . . . Reprogrammed . | . . . Reused . | . . . Traps Extracted . | . . . Installed . | . . . Triggered . | . . . Machines | -11 -10 -10 ---------- Run | Yrd Mat Sub Machines Disabled . | . . . Max in Single Turn . | . . . Machines Repaired . | . . . Machines Dismantled . | . . . Machines Sabotaged . | . . . Overloaded Fab Kills . | . . . Hacking | -11 -10 -10 --------- Run | Yrd Mat Sub Machines Accessed 4 | . 4 . Terminals 3 | . 3 . Fabricators . | . . . Repair Stations . | . . . Recycling Units 1 | . 1 . Scanalyzers . | . . . Garrison Access . | . . . Total Hacks 12 | . 12 . Successful 7 | . 7 . Failed 5 | . 5 . Catastrophic 1 | . 1 . Database Lockouts . | . . . Manual 12 | . 12 . Terminals 9 | . 9 . Fabricators . | . . . Repair Stations . | . . . Recycling Units 3 | . 3 . Scanalyzers . | . . . Garrison Access . | . . . Terminal Hacks 2 | . 2 . Branch Access Points 1 | . 1 . Terminal Index 1 | . 1 . Fabricator Hacks . | . . . Repair Station Hacks . | . . . Recycling Unit Hacks . | . . . Scanalyzer . | . . . Garrison Access Hacks . | . . . Unauthorized Hacks 4 | . 4 . Terminals 3 | . 3 . Botnet 3 | . 3 . Fabricators . | . . . Repair Stations . | . . . Recycling Units 1 | . 1 . Tunnel 1 | . 1 . Scanalyzers . | . . . Garrison Access . | . . . Data Cores Recovered . | . . . Used . | . . . Hacking Detections 3 | . 3 . Full Trace Events . | . . . Feedback Events . | . . . Feedback Blocked . | . . . Robot Schematics Acquired . | . . . Robots Built . | . . . Authchips . | . . . Time . | . . . Total Robot Build Rating . | . . . Part Schematics Acquired . | . . . Parts Built . | . . . Authchips . | . . . Time . | . . . Total Part Build Rating . | . . . Part Studies Acquired . | . . . Parts Repaired . | . . . Time . | . . . Parts Recycled . | . . . Recycled Matter . | . . . Retrieved Matter . | . . . Retrieved Components . | . . . Parts Scanalyzed . | . . . Part Schematics Acquired . | . . . Parts Damaged . | . . . Bothacking | -11 -10 -10 ------------ Run | Yrd Mat Sub Used RIF Installer . | . . . Robots Hacked . | . . . Non-combat . | . . . Combat . | . . . Robot Hacks Applied . | . . . Relay Couplers Released . | . . . Fabnet Peak Effective % . | . . . Robots Rewired . | . . . Allies Hacked . | . . . Hacks Repelled . | . . . Allies | -11 -10 -10 -------- Run | Yrd Mat Sub Total Allies . | . . . Largest Group . | . . . Highest-Rated Group . | . . . Highest-Rated Ally . | . . . Total Orders . | . . . Ally Attacks . | . . . Total Damage . | . . . Kills . | . . . Allies Corrupted . | . . . Allies Melted . | . . . Intel | -11 -10 -10 ------- Run | Yrd Mat Sub Active Infowar (turns) 969 | . 323 646 Sensors 969 | . 323 646 Robot Analysis Total . | . . . Derelict Logs Recovered 1 | . . 1 Drone Launches . | . . . Drone Recoveries . | . . . Exploration | -11 -10 -10 ------------- Run | Yrd Mat Sub Turns Passed 1020 | 43 331 646 Spaces Moved 807 | 39 237 531 Core 3 | 3 . . Treads . | . . . Legs 311 | 1 . 310 Wheels 493 | 35 237 221 Hover . | . . . Flight . | . . . Fastest Speed 50 | 50 80 80 Average Speed 95 | 80 80 103 Slowest Speed 120 | 120 80 120 Overloaded Moves . | . . . Propulsion Burnouts . | . . . Robots Hopped . | . . . Potential Cave-ins . | . . . Cave-ins Triggered . | . . . Exploration Rate (%) 28 | 3 44 37 Regions Visited 2 Branch Regions 1 Pre-discovered Areas 2 | . 1 1 Known Exits Taken . | . . . Unknown Exits Taken 2 | 1 1 . Scrap Searched . | . . . Spaces Dug . | . . . Terrain Destroyed . | . . . Melee . | . . . Projectile . | . . . AOE . | . . . Terrain Rammed . | . . . Walls Destroyed . | . . . Machines Disabled . | . . . Actions | -11 -10 -10 --------- Run | Yrd Mat Sub Total 979 | 47 334 598 Wait 110 | . 68 42 Move 805 | 38 236 531 Hop . | . . . Pick Up 9 | 3 3 3 Fast Attach 7 | 5 2 . Attach 3 | . . 3 Detach . | . . . Swap 5 | 1 1 3 Drop 3 | . 2 1 Fire 37 | . 22 15 Melee . | . . . Ram . | . . . Kick . | . . . Crush . | . . . Escape Stasis . | . . . Rewire . | . . . Trap . | . . . Miscellaneous . | . . . Route ------- -11/Scrapyard -10/Materials (discovered 3 exits: *Min x2 / [*Sub]) -10/Subcaves (discovered 1 exit: [*Mat]) History --------- Turn | Location | Event 13 | -11/Scrapyard | Discovered new exit (range 16) 44 | -11/Scrapyard | Entered Materials 62 | -10/Materials | Discovered new exit (range 12) 167 | -10/Materials | Discovered new exit (range 14) 234 | -10/Materials | Identified exit to Mines 303 | -10/Materials | Build established: Mutant 360 | -10/Materials | Discovered new exit (range 6) 375 | -10/Materials | Entered Subcaves 470 | -10/Subcaves | Shifting Twisted Machinery released Sub. Monowheel 540 | -10/Subcaves | Ambushed by Subdwellers from Twisted Machinery 613 | -10/Subcaves | Lost 4 parts (1p1n1u1w) 657 | -10/Subcaves | Discovered new exit (range 14) 713 | -10/Subcaves | A swath of the cavern ceiling suddenly collapsed 881 | -10/Subcaves | Learned location of Storage (-8) 1012 | -10/Subcaves | Core integrity fell below 50% 1020 | -10/Subcaves | Core integrity fell below 20% 1021 | -10/Subcaves | Destroyed by DZ-HUW(R) with Subdweller Machine Gun Last Messages --------------- Ion Engine destroyed. Subatomizers dissect the Disposable Heat Sink. Lgt. Armor Plating destroyed. O9-D1Y(R) destroyed. Acquired 45 matter. Acquired Sub. Power Source. Acquired 24 matter. Dropped Wheel. Subatomizers dissect the Disposable Heat Sink. Acquired Sub. Optics. Acquired Sub. Machine Gun. Acquired 29 matter. Subatomizers dissect the Disposable Heat Sink. KS-67P(u) builds Twisted Machinery. EXIT=FOUND A swath of the cavern ceiling suddenly collapses. Acquired derelict log, extracted data. World map updated: -8/Storage. [Achievement: Back For More] Map ----- +----------------------------------------------------+ | ?????????????????????????????????????????????????? | | ?????????????????????????????????????????????????? | | ?????????????????????????????????????????????????? | | ?????????????????????????????????????????????????? | | ?????????????????????????????????????????????????? | | ?????????????????????????????????????????????????? | | ?????????????????????????????????????????????????? | | ?????????????????????????????????????????????????? | | ?????????????????????????????????????????????????? | | ?????????????????????????????????????????????????? | | ?????????????????????????????????????????????????? | | ###??????????????????????????????????????????????? | | #####??????????????????????????????????????????? | | ###????????????????????????????????????????? | | ## ##???????????????????????????????????????? | | ### #???????????????????????????????????????? | | ### #???????????????????????????????????????? | | ## ###?????????????????????????????????????? | | ## ###???????????????????????????????????? | | #### ##??????????????????????????????????? | | #??# #??????####????????????????????????? | | #?## ##?????##""###??????????????????????? | | #?# ##??????# """###????????????????????? | | #?# #####????#""" " #### "???????????????? | | #?# ##??##" R "" "??????????????? | | # ## ## ##?#"" @R""""" "??????????????? | | ## ## #### "### "" ????????????????? | | ?## # "##??# """ ???????????????? | | ??##" ##??#""" ???????????????? | | ? ""#???##"?????????????????? | | # #" ### "#???????????????????????? | | ?#?# ###?## ##???????????????????????? | | ???## ##########????????????????????????? | | ????### ### #???????????????????????????? | | ??????###### ## ##??????????????????????????? | | ???####????## ## ##?????????????????????????? | | ???# ##????# ## ##????????????????????????? | | ??## ##???## ###### #????????????????????????? | | #?# #????###?#### ##???????????????????????? | | ### #####????# ######??????????????????? | | ## ## ####### ####???????????????? | | ### ### ## #???????????????? | | ?## ## ## #???????????????? | | ## #### # ### #???????????????? | | #??## ##### #?# ###???????????????? | | ##??#####??## ### #?????????????????? | | #????????## ### ####???????????????? | | ####???###" ### #???????????????? | | ##"#??## #"" #???????????????? | | ## ### ##"""#### "## ????????????????? | +----------------------------------------------------+ Best States ------------- Heat Dissipation 25 Energy Generation 10 Energy Capacity 250 Matter Stores 300 Matter Capacity 300 Sight Range 16 Robot Scan Range 14 Terrain Scan Density 10 Armor Coverage 150 Evasion (%) 55 Item Schematics ----------------- None Robot Schematics ------------------ None Fabricated ------------ Nothing Repaired ---------- Nothing Studied --------- None Alien Tech Used ----------------- None Achievements -------------- Back For More Challenges ------------ None Game ------ Seed ChargeAbsorptionClaw Manual? 0 Play Time 00:10:02 Cumulative 46.6 hours Start 2025.10.30 @ 17:04:27 End 2025.10.30 @ 17:11:17 Sessions 1 Manual Loads 0 Difficulty Rogue Special Mode None Game No. 50 Rogue 50 Adventurer 0 Explorer 0 Win Type - Total 1 Types 1/0/0/0/0/0/0/0/0/0 Lore% 45 Gallery% 42 Achievement% 29 Wizard Run 0 Options --------- Layout 1 ASCII 0 Keyboard 0 Movement Numpad Keybinds 0 Fullscreen 1 Font 32/SmallcapsGlow Map View 50x35 Zoom Use 0% Tactical HUD 0 Map Filters NONE Filters NONE Steam 1 RUN: 5e2521a8-4bb8-4978-af87-e8d80ce8dd0a